fUSD/lending_fUSD_20260421
["ID","MTS","AMOUNT","RATE_DAILY","PERIOD"]
[420893228,1776701713198,-19405.07,0.00011,2]
[420893229,1776701713208,-19405.07,0.00011,2]
[420893230,1776701713218,-2284.16,0.00011,2]
[420893231,1776701713227,-2284.16,0.00011,2]
[420893232,1776701713237,-151.0,0.00011,2]
[420893233,1776701713247,-10779.7280791,0.00011099,2]
[420893234,1776701713257,-162.914011,0.000112,2]
[420893235,1776701713267,-3961.9,0.000112,2]
[420893236,1776701713277,-19405.07,0.000112,2]
[420893237,1776701713286,-2284.16,0.000112,2]
[420893238,1776701713296,-150.0,0.0001122,2]
[420893239,1776701713306,-7544.90158762,0.00011243,2]
[420893240,1776701713315,-1600.0,0.00011325,2]
[420893241,1776701713325,-415.188331,0.00011332,2]
[420893242,1776701713335,-5477.0,0.00011423,2]
[420893243,1776701713344,-1557.99,0.00011507,2]
[420893244,1776701713354,-150.0,0.0001152,2]
[420893245,1776701713365,-2000.0,0.00011622,2]
[420893246,1776701713375,-5433.69,0.00011629,2]
[420893247,1776701713385,-1785.70605485,0.00011643,2]
[420893248,1776701713394,-244.422103,0.0001176,2]
[420893249,1776701713404,-10779.72807903,0.00011797,2]
[420893250,1776701713413,-200.0,0.000118,4]
[420893251,1776701713423,-200.0,0.00011801,2]
[420893252,1776701713432,-1349.0,0.00011801,2]
[420893253,1776701713441,-1048.0,0.00011801,2]
[420893254,1776701713451,-3528.0,0.00011801,2]
[420893255,1776701713461,-150.0,0.0001182,2]
[420893256,1776701713470,-35201.73126129,0.00011837,2]
[420893257,1776701714676,-30925.13351342,0.00011837,2]
[420893258,1776701714688,-1392.03401369,0.00011837,2]
[420893259,1776701714698,-50634.04416425,0.000119,3]
[420893260,1776701714707,-153.78868188,0.000119,2]
[420893261,1776701714717,-500.0,0.000119,4]
[420893262,1776701714727,-684.22215956,0.000119,2]
[420893263,1776701714738,-644.71052742,0.000119,2]
[420893264,1776701714750,-699.59791438,0.000119,2]
[420893265,1776701714770,-659.1457183,0.000119,2]
[420893266,1776701714781,-952.0,0.000119,2]
[420893267,1776701718638,500.0,8.085e-05,2]
[420893268,1776701719716,-500.0,0.000119,2]
[420893269,1776701720426,-488.52303721,0.000119,2]
[420893270,1776701721350,-371.80064313,0.000119,2]
[420893271,1776701721360,-155.0,0.00011999,2]
[420893272,1776701721370,-50000.0,0.00012,2]
[420893273,1776701721379,-150.360037,0.00012,5]
[420893274,1776701721388,-154488.61256728,0.00012,2]
[420893275,1776701721398,-124740.02020781,0.00012,2]
[420893276,1776701721410,-59788.00660248,0.00012,2]
[420893277,1776701721421,-259.01583508,0.00012,2]
[420893278,1776701721432,-9599.14585426,0.00012,2]
[420893279,1776701722188,-2407.0,0.00011423,2]
[420893280,1776701722198,-905.377,0.000118,4]
[420893281,1776701722291,-1394.623,0.000118,4]
[420893282,1776701722301,-141793.19504081,0.00012,2]
[420893283,1776701725703,-4225.3903,0.000119,4]
[420893284,1776701725727,-374.6097,0.000119,4]
[420893285,1776701726222,-114044.8467901,0.00012,2]
[420893286,1776701726645,-332.96139607,0.00012,2]
[420893287,1776701761611,995.0,0.000165,30]
[420893288,1776701773426,776.18501404,8.153e-05,2]
[420893289,1776701774602,250.0,8.119e-05,2]
[420893290,1776701787074,1600.0,7.626e-05,2]
[420893292,1776701814346,250.0,7.626e-05,2]
[420893293,1776701838886,250.0,7.626e-05,2]
[420893294,1776701844347,150.0,8.22e-05,2]
[420893295,1776701862039,250.0,7.626e-05,2]
[420893296,1776701877214,-162.28,8.294e-05,2]
[420893297,1776701877245,-216.37,8.341e-05,2]
[420893298,1776701877276,-1314.91277975,8.388e-05,2]
[420893299,1776701877306,-193.0,8.388e-05,2]
[420893300,1776701877336,-150.0,8.4e-05,2]
[420893301,1776701877367,-525.47467826,8.403e-05,2]
[420893302,1776701877396,-500.28503073,8.403e-05,2]
[420893303,1776701877426,-500.0,8.403e-05,2]
[420893304,1776701877455,-500.0,8.403e-05,2]
[420893305,1776701877483,-500.0,8.403e-05,2]
[420893306,1776701877514,-246.0,8.428e-05,2]
[420893307,1776701878439,-1200.0,8.428e-05,2]
[420893308,1776701878475,-300.0,8.428e-05,2]
[420893309,1776701878506,-300.0,8.428e-05,2]
[420893310,1776701879048,-179.03775452,8.428e-05,2]
[420893311,1776701879079,-500.0,8.428e-05,2]
[420893312,1776701879109,-153.41322101,8.428e-05,2]
[420893313,1776701879143,-500.0,8.428e-05,2]
[420893314,1776701879174,-425.78095009,8.428e-05,2]
[420893315,1776701879204,-474.53048406,8.428e-05,2]
[420893316,1776701879240,-459.8145618,8.428e-05,2]
[420893317,1776701881850,625.08709732,8.428e-05,2]
[420893318,1776701883376,389.76895972,8.388e-05,2]
[420893319,1776701883399,4610.23104028,8.388e-05,2]
[420893320,1776701884652,250.0,8.388e-05,2]
[420893321,1776701885442,500.0,8.403e-05,2]
[420893322,1776701885606,250.0,7.626e-05,2]
[420893323,1776701886097,500.0,8.403e-05,2]
[420893324,1776701887071,3889.77895972,8.24e-05,2]
[420893325,1776701887095,5662.38890575,8.24e-05,2]
[420893326,1776701887221,500.0,8.24e-05,2]
[420893327,1776701887309,479.38308276,8.295e-05,2]
[420893328,1776701887439,500.0,8.295e-05,2]
[420893329,1776701887612,500.0,8.35e-05,2]
[420893330,1776701887776,500.0,8.405e-05,2]
[420893334,1776701903025,151.0,8.24e-05,2]
[420893335,1776701903232,151.0,8.295e-05,2]
[420893336,1776701903366,151.0,8.35e-05,2]
[420893337,1776701903599,151.0,8.405e-05,2]
[420893338,1776701905167,174.61919141,8.24e-05,2]
[420893339,1776701906985,250.0,8.389e-05,2]
[420893340,1776701912183,150.0,8.4e-05,2]
[420893341,1776701919711,235.75327194,8.24e-05,2]
[420893342,1776701919993,244.476143,8.24e-05,2]
[420893343,1776701920403,199.38940514,8.24e-05,2]
[420893344,1776701920426,54.13235515,8.24e-05,2]
[420893345,1776701920702,262.90206542,8.24e-05,2]
[420893346,1776701922047,272.62944185,8.24e-05,2]
[420893347,1776701922449,282.71673119,8.24e-05,2]
[420893348,1776701922592,293.17725025,8.24e-05,2]
[420893349,1776701923013,304.02480851,8.24e-05,2]
[420893350,1776701923282,315.27372642,8.24e-05,2]
[420893351,1776701923420,326.9388543,8.24e-05,2]
[420893352,1776701923829,339.0355919,8.24e-05,2]
[420893353,1776701924682,1500.0,7.693e-05,2]
[420893354,1776701928523,150.0,8.239e-05,2]
[420893355,1776701934719,150.0,8.22e-05,2]
[420893356,1776701934992,579.94622367,7.858e-05,2]
[420893357,1776701950698,500.0,8.428e-05,2]
[420893358,1776701950807,500.0,8.428e-05,2]
[420893359,1776701952301,168.43057887,8.428e-05,2]
[420893360,1776701976734,150.0,8.22e-05,2]
[420893361,1776702001151,1200.0,8.428e-05,2]
[420893362,1776702008383,2613.03336771,8.429e-05,2]
[420893370,1776702077933,37.76900476,8.428e-05,2]
[420893371,1776702077964,462.23099524,8.428e-05,2]
[420893372,1776702078015,500.0,8.428e-05,2]
[420893373,1776702078064,500.0,8.428e-05,2]
[420893374,1776702078112,208.32112027,8.428e-05,2]
[420893375,1776702078148,500.0,8.428e-05,2]
[420893376,1776702078211,500.0,8.428e-05,2]
[420893377,1776702078247,500.0,8.428e-05,2]
[420893378,1776702078282,500.0,8.428e-05,2]
[420893379,1776702078347,500.0,8.428e-05,2]
[420893380,1776702078401,500.0,8.428e-05,2]
[420893381,1776702078436,500.0,8.428e-05,2]
[420893382,1776702078496,500.0,8.428e-05,2]
[420893383,1776702078543,500.0,8.428e-05,2]
[420893384,1776702078594,500.0,8.428e-05,2]
[420893385,1776702078650,500.0,8.428e-05,2]
[420893386,1776702078699,500.0,8.428e-05,2]
[420893387,1776702078976,500.0,8.428e-05,2]
[420893388,1776702080131,300.0,8.428e-05,2]
[420893389,1776702093391,208.32112026,8.428e-05,2]
[420893390,1776702107283,291.67887973,8.428e-05,2]
[420893391,1776702110502,150.0,8.22e-05,2]
[420893392,1776702114557,500.0,8.428e-05,2]
[420893393,1776702114604,379.4578845,8.428e-05,2]
[420893394,1776702114628,120.5421155,8.428e-05,2]
[420893395,1776702114701,317.90140521,8.428e-05,2]
[420893396,1776702127496,578.20924308,8.429e-05,2]
[420893397,1776702131016,500.0,8.429e-05,2]
[420893398,1776702131233,209.40437684,8.429e-05,2]
[420893399,1776702131466,200.0,8.424e-05,2]
[420893400,1776702131568,8073.95285937,8.424e-05,2]
[420893401,1776702131594,1478.2150061,8.424e-05,2]
[420893402,1776702131788,721.12765535,8.424e-05,2]
[420893403,1776702132173,1428.38747117,8.424e-05,2]
[420893404,1776702140097,743.50770149,8.424e-05,2]
[420893405,1776702142013,151.0,8.424e-05,2]
[420893406,1776702143244,209.40437684,8.424e-05,2]
[420893407,1776702146744,2000.0,8.424e-05,2]
[420893408,1776702147391,2000.0,8.424e-05,2]
[420893409,1776702147981,2000.0,8.424e-05,2]
[420893410,1776702148607,2000.0,8.424e-05,2]
[420893411,1776702149207,1790.60562316,8.424e-05,2]
[420893412,1776702149231,209.39437684,8.424e-05,2]
[420893413,1776702149369,174.61919141,8.424e-05,2]
[420893414,1776702149854,2000.0,8.424e-05,2]
[420893415,1776702151340,2000.0,8.424e-05,2]
[420893416,1776702151547,2000.0,8.424e-05,2]
[420893417,1776702151794,2000.0,8.424e-05,2]
[420893418,1776702152323,1615.99643175,8.424e-05,2]
[420893419,1776702155294,-384.00356825,8.424e-05,2]
[420893420,1776702155324,-2000.0,8.424e-05,2]
[420893421,1776702209764,150.0,8.22e-05,2]
[420893422,1776702280770,150.0,8.22e-05,2]
[420893423,1776702362943,-1200.0,8.328e-05,2]
[420893424,1776702379833,150.0,8.22e-05,2]
[420893425,1776702421161,300.0,8.328e-05,2]
[420893426,1776702453021,300.0,8.328e-05,2]
[420893427,1776702512630,361.65740351,8.328e-05,2]
[420893428,1776702512671,500.0,8.328e-05,2]
[420893429,1776702512701,500.0,8.328e-05,2]
[420893430,1776702512762,403.01112905,8.328e-05,2]
[420893431,1776702512901,370.57764871,8.328e-05,2]
[420893432,1776702513017,500.0,8.328e-05,2]
[420893433,1776702514879,500.0,8.328e-05,2]
[420893434,1776702515055,500.0,8.328e-05,2]
[420893435,1776702515235,500.0,8.328e-05,2]
[420893436,1776702515311,517.23734008,8.328e-05,2]
[420893437,1776702515670,150.0,8.22e-05,2]
[420893438,1776702516657,500.0,8.328e-05,2]
[420893439,1776702516711,467.59123559,8.328e-05,2]
[420893440,1776702530321,150.0,8.328e-05,2]
[420893441,1776702560218,150.0,8.328e-05,2]
[420893442,1776702561665,150.0,8.328e-05,2]
[420893443,1776702572709,629.93524306,8.249e-05,2]
[420893444,1776702572733,338.45475694,8.249e-05,2]
[420893445,1776702577994,150.0,8.328e-05,2]
[420893446,1776702587793,464.29,8.249e-05,2]
[420893447,1776702597855,150.0,8.328e-05,2]
[420893448,1776702601525,1200.0,8.328e-05,2]
[420893449,1776702618171,1000.0,8.328e-05,2]
[420893450,1776702622338,500.0,8.328e-05,2]
[420893451,1776702631669,150.0,8.22e-05,2]
[420893457,1776702632174,-14343.0593,8.329e-05,2]
[420893458,1776702632184,-690832.25093999,8.329e-05,2]
[420893459,1776702632195,-7696.48617239,8.329e-05,2]
[420893460,1776702632207,-43931.0660863,8.329e-05,2]
[420893461,1776702632219,-94982.58349461,8.329e-05,2]
[420893462,1776702632291,-506.276,8.329e-05,2]
[420893463,1776702632308,-1407.06176575,8.329e-05,2]
[420893464,1776702632334,-4316.76444638,8.329e-05,2]
[420893466,1776702632346,-1053.71656762,8.329e-05,2]
[420893467,1776702632383,-7449.0,8.329e-05,2]
[420893478,1776702638247,-12236.41269311,8.329e-05,2]
[420893479,1776702638259,-319.56578962,8.329e-05,2]
[420893480,1776702638270,-377.71519993,8.329e-05,2]
[420893481,1776702638311,-300.92539065,8.329e-05,2]
[420893482,1776702638323,-500.0,8.329e-05,2]
[420893618,1776702640374,-776.90309751,8.329e-05,2]
[420893699,1776702641151,-1264.92966721,8.329e-05,2]
[420893701,1776702641162,-5194.36297898,8.329e-05,2]
[420893708,1776702641222,500.0,8.328e-05,2]
[420893912,1776702643222,-6334.70280995,8.329e-05,2]
[420893914,1776702643232,-4156.846,8.329e-05,2]
[420893915,1776702643242,-5453.4388,8.329e-05,2]
[420893917,1776702643252,-721.12765535,8.424e-05,2]
[420893919,1776702643262,-200.0,8.424e-05,2]
[420893921,1776702643271,-1428.38747117,8.424e-05,2]
[420893923,1776702643281,-9552.16786547,8.424e-05,2]
[420893925,1776702643290,-743.50770149,8.424e-05,2]
[420893926,1776702643300,-209.40437684,8.424e-05,2]
[420893928,1776702643309,-151.0,8.424e-05,2]
[420893930,1776702643319,-151.0,8.424e-05,2]
[420893932,1776702643328,-174.61919141,8.424e-05,2]
[420893934,1776702643338,-235.75327194,8.424e-05,2]
[420893936,1776702643347,-244.476143,8.424e-05,2]
[420893938,1776702643356,-253.52176029,8.424e-05,2]
[420893990,1776702643366,-345.02061161,8.424e-05,2]
[420893993,1776702643941,-279.9045709,8.424e-05,2]
[420893995,1776702643951,-578.20924308,8.429e-05,2]
[420893997,1776702643960,-500.0,8.429e-05,2]
[420893999,1776702643970,-194.72792767,8.429e-05,2]
[420894001,1776702643979,-4910.68921216,8.479e-05,2]
[420894003,1776702643988,-151.0,8.479e-05,2]
[420894004,1776702643999,-500.0,8.484e-05,2]
[420894006,1776702644009,-150.0,8.52e-05,2]
[420894008,1776702644019,-151.0,8.534e-05,2]
[420894010,1776702644029,-500.0,8.539e-05,2]
[420894012,1776702644038,-1600.0,8.579e-05,2]
[420894014,1776702644048,-151.0,8.589e-05,2]
[420894016,1776702644060,-500.0,8.594e-05,2]
[420894018,1776702644070,-151.0,8.644e-05,2]
[420894020,1776702644079,-500.0,8.649e-05,2]
[420894022,1776702644088,-500.0,8.685e-05,2]
[420894024,1776702644098,-151.0,8.699e-05,2]
[420894026,1776702644107,-150.0,8.7e-05,2]
[420894027,1776702644117,-500.0,8.704e-05,2]
[420894029,1776702644127,-151.0,8.754e-05,2]
[420894031,1776702644137,-500.0,8.759e-05,2]
[420894033,1776702644146,-250.0,8.767e-05,2]
[420894035,1776702644156,-151.0,8.809e-05,2]
[420894037,1776702644165,-500.0,8.814e-05,2]
[420894039,1776702644175,-150.0,8.82e-05,2]
[420894041,1776702644184,-151.0,8.864e-05,2]
[420894042,1776702644194,-500.0,8.869e-05,2]
[420894044,1776702644203,-29965.90990396,8.906e-05,2]
[420894046,1776702644213,-151.0,8.919e-05,2]
[420894048,1776702644222,-500.0,8.924e-05,2]
[420894050,1776702644231,-287.04,8.932e-05,2]
[420894052,1776702644241,-200.0,8.972e-05,2]
[420894054,1776702644251,-1481.23780761,8.972e-05,2]
[420894056,1776702644260,-771.01748645,8.972e-05,2]
[420894057,1776702644269,-217.15233878,8.972e-05,2]
[420894059,1776702644279,-181.08010149,8.972e-05,2]
[420894062,1776702644293,-290.26104003,8.972e-05,2]
[420894063,1776702644302,-500.0,8.972e-05,2]
[420894065,1776702644311,-151.0,8.974e-05,2]
[420894067,1776702644321,-500.0,8.979e-05,2]
[420894069,1776702644331,-150.0,9.12e-05,2]
[420894071,1776702644341,-206.96224548,9.161e-05,2]
[420894073,1776702644350,-250.0,9.161e-05,2]
[420894075,1776702644360,-2192.57235329,9.161e-05,2]
[420894077,1776702644369,-822.0,9.161e-05,2]
[420894078,1776702644378,-5000.0,9.162e-05,2]
[420894080,1776702644387,-5019.02218059,9.162e-05,2]
[420894082,1776702644397,-500.0,9.246e-05,2]
[420894084,1776702644406,-150.0,9.42e-05,2]
[420894086,1776702644416,-4341.80510498,9.488e-05,2]
[420894088,1776702644426,-16952.85,9.495e-05,2]
[420894090,1776702644436,-200.0,9.52e-05,2]
[420894092,1776702644447,-1536.04360649,9.52e-05,2]
[420894094,1776702644456,-799.54513345,9.52e-05,2]
[420894096,1776702644466,-225.18697532,9.52e-05,2]
[420894098,1776702644476,-187.78006525,9.52e-05,2]
[420894100,1776702644485,-301.00069851,9.52e-05,2]
[420894101,1776702644495,-33078.91,9.532e-05,2]
[420894103,1776702644505,-1000.0,9.532e-05,2]
[420894105,1776702644514,-1600.0,9.532e-05,2]
[420894107,1776702644523,-150.0,9.72e-05,2]
[420894109,1776702644535,-227.03642489,9.85e-05,2]
[420894111,1776702644545,-260.0,9.863e-05,2]
[420894113,1776702644555,-500.0,9.92e-05,2]
[420894115,1776702644564,-771.92,0.0001,2]
[420894117,1776702644574,-500.0,0.0001,2]
[420894119,1776702644583,-500.0,0.0001,2]
[420894121,1776702644592,-151.0,0.0001,2]
[420894122,1776702644602,-500.0,0.0001,2]
[420894124,1776702644611,-151.0,0.0001,2]
[420894126,1776702644621,-500.0,0.0001,2]
[420894128,1776702644631,-151.0,0.0001,2]
[420894130,1776702644642,-200.0,0.0001,2]
[420894132,1776702644652,-500.0,0.0001,2]
[420894134,1776702644662,-151.0,0.0001,2]
[420894136,1776702644671,-151.0,0.0001,2]
[420894138,1776702644683,-500.0,0.0001,2]
[420894140,1776702644693,-151.0,0.0001,2]
[420894142,1776702644703,-500.0,0.0001,2]
[420894144,1776702644712,-151.0,0.0001,2]
[420894146,1776702644721,-500.0,0.0001,2]
[420894148,1776702644730,-151.0,0.0001,2]
[420894149,1776702644741,-500.0,0.0001,2]
[420894151,1776702644750,-151.0,0.0001,2]
[420894152,1776702644759,-500.0,0.0001,2]
[420894153,1776702644769,-151.0,0.0001,2]
[420894154,1776702644778,-500.0,0.0001,2]
[420894155,1776702644787,-151.0,0.0001,2]
[420894156,1776702644797,-151.0,0.0001,2]
[420894157,1776702644806,-755.40294368,0.0001001,2]
[420894158,1776702644816,-150.0,0.0001002,2]
[420894159,1776702644825,-200.0,0.00010068,2]
[420894160,1776702644835,-1592.87721993,0.00010068,2]
[420894161,1776702644844,-233.51889341,0.00010068,2]
[420894162,1776702644854,-194.72792766,0.00010068,2]
[420894163,1776702644864,-312.13772435,0.00010068,2]
[420894164,1776702644873,-771.92,0.00010274,2]
[420894165,1776702644883,-150.0,0.0001032,2]
[420894166,1776702644893,-311.88887855,0.00010473,2]
[420894167,1776702644903,-500.0,0.00010473,2]
[420894168,1776702644913,-500.0,0.00010473,2]
[420894169,1776702644923,-150.99,0.00010475,2]
[420894170,1776702644933,-4921.67,0.00010475,2]
[420894171,1776702644943,-1483.24,0.00010475,2]
[420894172,1776702644953,-10717.75,0.00010475,2]
[420894173,1776702644963,-952.94,0.00010475,2]
[420894174,1776702644972,-999.99,0.00010475,2]
[420894175,1776702644982,-299.99,0.00010475,2]
[420894176,1776702644991,-9999.99,0.00010475,2]
[420894177,1776702645001,-28047.2,0.00010475,2]
[420894179,1776702645010,-9999.99,0.00010475,2]
[420894180,1776702645019,-9999.99,0.00010475,2]
[420894182,1776702645029,-1338.49687762,0.00010475,2]
[420894298,1776702646111,-17789.8367,0.00010475,2]
[420894311,1776702646221,-299.40581149,0.00010475,2]
[420894335,1776702646440,-7141.22737297,0.00010475,2]
[420895191,1776702663732,500.0,8.328e-05,2]
[420895192,1776702752188,10000.01,8.229e-05,2]
[420895193,1776702802886,150.0,8.22e-05,2]
[420895194,1776702818957,516.24723,8.178e-05,2]
[420895195,1776702876077,150.0,8.22e-05,2]
[420895196,1776702967312,-300.0,8.227e-05,2]
[420895197,1776702967343,-1200.0,8.228e-05,2]
[420895198,1776702967374,-1200.0,8.228e-05,2]
[420895199,1776702967404,-150.0,8.228e-05,2]
[420895200,1776702967436,-306.19539434,8.228e-05,2]
[420895201,1776702967466,-500.0,8.228e-05,2]
[420895202,1776702967498,-500.0,8.228e-05,2]
[420895203,1776702967529,-500.0,8.228e-05,2]
[420895204,1776702967558,-139.76210307,8.228e-05,2]
[420895205,1776702967651,-408.09500518,8.228e-05,2]
[420895206,1776702967687,-500.0,8.228e-05,2]
[420895207,1776702967724,-217.69530802,8.228e-05,2]
[420895208,1776702967761,-500.0,8.228e-05,2]
[420895209,1776702967795,-500.0,8.228e-05,2]
[420895210,1776702967826,-573.55692185,8.228e-05,2]
[420895211,1776702967857,-500.0,8.228e-05,2]
[420895212,1776702967888,-500.0,8.228e-05,2]
[420895213,1776702967919,-250.0,8.229e-05,2]
[420895214,1776702971329,150.0,8.22e-05,2]
[420895217,1776703005681,431.21117668,8.228e-05,2]
[420895218,1776703021170,300.0,8.228e-05,2]
[420895219,1776703032247,180.6946,8.128e-05,2]
[420895220,1776703035968,187.85,8.2e-05,2]
[420895221,1776703036316,234.81,8.2e-05,2]
[420895222,1776703037555,502.10432319,8.203e-05,2]
[420895223,1776703040420,114.64543003,8.22e-05,2]
[420895224,1776703040444,35.35456997,8.22e-05,2]
[420895225,1776703064164,231.91,8.2e-05,2]
[420895226,1776703077536,180.37,8.2e-05,2]
[420895227,1776703114517,-3359.68775,0.000266,30]
[420895228,1776703114574,-476.67520327,0.0002737,30]
[420895229,1776703114634,-500.0,0.00028499,120]
[420895230,1776703114689,-506.24765238,0.00028499,120]
[420895231,1776703114742,-500.0,0.00028499,30]
[420895232,1776703114794,-500.0,0.00028499,30]
[420895233,1776703114846,-500.0,0.00028499,30]
[420895234,1776703114899,-500.0,0.00028499,30]
[420895235,1776703114951,-500.0,0.00028499,30]
[420895236,1776703115004,-500.0,0.00028499,30]
[420895237,1776703115055,-500.0,0.00028499,120]
[420895238,1776703115105,-500.0,0.00028499,120]
[420895239,1776703115155,-500.0,0.00028499,120]
[420895240,1776703115205,-500.0,0.00028499,120]
[420895241,1776703115253,-500.0,0.00028499,120]
[420895242,1776703115304,-614.49,0.00028499,120]
[420895243,1776703115354,-500.0,0.00028499,120]
[420895244,1776703115403,-500.0,0.00028499,120]
[420895245,1776703115454,-500.0,0.00028499,120]
[420895246,1776703115504,-500.0,0.00028499,120]
[420895247,1776703115558,-500.0,0.00028499,120]
[420895248,1776703115610,-500.0,0.00028499,120]
[420895249,1776703115662,-604.77,0.00028499,120]
[420895250,1776703115714,-604.77,0.00028499,120]
[420895251,1776703115763,-604.77,0.00028499,120]
[420895252,1776703115812,-604.77,0.00028499,120]
[420895253,1776703115863,-604.77,0.00028499,120]
[420895254,1776703115918,-604.77,0.00028499,120]
[420895255,1776703115970,-503.35,0.00028499,120]
[420895256,1776703116022,-503.35,0.00028499,120]
[420895257,1776703116073,-503.35,0.00028499,120]
[420895258,1776703116123,-503.35,0.00028499,120]
[420895259,1776703116172,-503.35,0.00028499,120]
[420895260,1776703116223,-503.35,0.00028499,120]
[420895261,1776703116272,-507.9500982,0.00028499,120]
[420895262,1776703116689,-719.19,0.00028499,120]
[420895263,1776703116753,-719.19,0.00028499,120]
[420895264,1776703116803,-719.19,0.00028499,120]
[420895265,1776703116855,-719.19,0.00028499,120]
[420895266,1776703116906,-719.19,0.00028499,120]
[420895267,1776703116959,-719.19,0.00028499,120]
[420895268,1776703117010,-794.03,0.00028499,30]
[420895269,1776703117063,-794.03,0.00028499,30]
[420895270,1776703117115,-794.03,0.00028499,30]
[420895271,1776703117167,-794.03,0.00028499,30]
[420895272,1776703117223,-794.03,0.00028499,30]
[420895273,1776703117277,-794.03,0.00028499,30]
[420895274,1776703117337,-500.0,0.00029699,30]
[420895275,1776703117393,-294.72210621,0.00029699,120]
[420895276,1776703117446,-604.77,0.00029699,120]
[420895277,1776703117501,-503.35,0.00029699,120]
[420895278,1776703117558,-719.19,0.00029699,120]
[420895279,1776703117614,-794.03,0.00029699,30]
[420895280,1776703117671,-500.0,0.00029799,30]
[420895281,1776703117727,-330.84,0.00029799,30]
[420895282,1776703117782,-604.77,0.00029799,120]
[420895283,1776703117836,-604.77,0.00029799,120]
[420895284,1776703117891,-604.77,0.00029799,120]
[420895285,1776703117945,-604.77,0.00029799,120]
[420895286,1776703118001,-604.77,0.00029799,120]
[420895287,1776703118056,-604.77,0.00029799,120]
[420895288,1776703118110,-604.86,0.00029799,120]
[420895289,1776703118162,-503.35,0.00029799,120]
[420895290,1776703118216,-503.35,0.00029799,120]
[420895291,1776703118269,-503.35,0.00029799,120]
[420895292,1776703118321,-503.35,0.00029799,120]
[420895293,1776703118374,-503.35,0.00029799,120]
[420895294,1776703118426,-503.35,0.00029799,120]
[420895295,1776703118478,-503.457232,0.00029799,120]
[420895296,1776703118534,-719.19,0.00029799,120]
[420895297,1776703118588,-719.19,0.00029799,120]
[420895298,1776703118642,-719.19,0.00029799,120]
[420895299,1776703118695,-719.19,0.00029799,120]
[420895300,1776703118748,-719.19,0.00029799,120]
[420895301,1776703118801,-719.19,0.00029799,120]
[420895302,1776703118855,-719.27,0.00029799,120]
[420895303,1776703118911,-794.03,0.00029799,30]
[420895304,1776703118963,-794.03,0.00029799,30]
[420895305,1776703119015,-794.03,0.00029799,30]
[420895306,1776703119067,-794.03,0.00029799,30]
[420895307,1776703119119,-794.03,0.00029799,30]
[420895308,1776703119172,-794.03,0.00029799,30]
[420895309,1776703119223,-794.22773213,0.00029799,30]
[420895310,1776703119283,-151.0,0.000298,30]
[420895311,1776703119336,-151.0,0.000298,30]
[420895312,1776703119388,-151.0,0.000298,30]
[420895313,1776703119441,-151.0,0.000298,30]
[420895314,1776703119492,-151.0,0.000298,30]
[420895315,1776703119547,-151.0,0.000298,30]
[420895316,1776703119599,-151.0,0.000298,30]
[420895317,1776703119652,-151.0,0.000298,30]
[420895318,1776703119704,-151.0,0.000298,30]
[420895319,1776703119754,-151.0,0.000298,30]
[420895320,1776703119806,-151.0,0.000298,30]
[420895321,1776703119859,-151.0,0.000298,30]
[420895322,1776703119912,-151.0,0.000298,30]
[420895323,1776703119966,-151.0,0.000298,30]
[420895324,1776703120017,-151.0,0.000298,30]
[420895325,1776703120068,-151.0,0.000298,30]
[420895326,1776703120120,-151.0,0.000298,30]
[420895327,1776703120170,-151.0,0.000298,30]
[420895328,1776703120220,-151.0,0.000298,30]